bitfinex/quotes_SOLUSD_20220113
["timestamp","ask_amount","ask_price","bid_price","bid_amount"]
[1642087618046,0.07962902,154.38,154.37,1.9428]
[1642087618248,0.07962902,154.38,154.31,2.591]
[1642087618447,0.07962902,154.38,154.3,9.9403]
[1642087619048,0.07962902,154.38,154.3,11.8839]
[1642087619252,22.2555611,154.36,154.3,1.9436]
[1642087619649,22.5055611,154.36,154.3,1.9436]
[1642087619850,22.5055611,154.36,154.28,2.591]
[1642087620050,12.3119,154.35,154.27,1.9439]
[1642087620350,2.592,154.35,154.26,9.4898]
[1642087620549,0.25,154.35,154.26,9.4898]
[1642087620951,0.32826842,154.32,154.26,9.4898]
[1642087621150,22.30971386,154.31,154.26,1.944]
[1642087621355,22.30971386,154.31,154.22,12.4591]
[1642087621553,25.15171386,154.31,154.22,2.592]
[1642087621956,38.86171386,154.31,154.21,337.93338638]
[1642087622156,9.7253,154.27,154.19,9.7413]
[1642087622353,38.86171386,154.31,154.14,73.3845]
[1642087622354,2.593,154.26,154.14,73.3845]
[1642087622554,23.82279142,154.25,154.14,9.7445]
[1642087622754,26.41679142,154.25,154.14,9.7445]
[1642087622955,26.66679142,154.25,154.14,9.7445]
[1642087623354,26.66679142,154.25,154.14,11.6899]
[1642087623554,32.66679142,154.25,154.14,11.6899]
[1642087624253,32.66679142,154.25,154.14,9.7445]
[1642087624457,40.37679142,154.25,154.11,2.594]
[1642087624654,40.37679142,154.25,154.09,2.594]
[1642087624854,40.37679142,154.25,154.07,2.594]
[1642087625457,40.37679142,154.25,154.07,2.844]
[1642087625655,9.7285,154.22,154.09,1.9461]
[1642087625856,17.66159484,154.2,154.09,1.9461]
[1642087626057,23.91159484,154.2,154.07,3.92724473]
[1642087626356,10.305,154.19,154.07,2.594]
[1642087626558,16.555,154.19,154.07,2.594]
[1642087626961,23.61116596,154.16,154.07,3.92724473]
[1642087627158,23.61116596,154.16,154.07,2.594]
[1642087627358,23.76116596,154.16,154.07,2.594]
[1642087627959,23.76116596,154.16,154.07,4.5404]
[1642087628390,2.595,154.15,154.07,2.594]
[1642087628559,0.25,154.15,154.07,2.854]
[1642087628759,0.25,154.15,154.07,2.594]
[1642087629161,29.51116596,154.16,154.07,2.594]
[1642087629361,9.7329,154.15,154.05,1.9467]
[1642087629565,18.3279,154.15,154.05,7.9467]
[1642087629763,18.3279,154.15,154.04,2.595]
[1642087630062,18.3279,154.15,154.03,12.1661]
[1642087630463,7.71,154.14,154.03,12.1661]
[1642087630663,7.71,154.14,154.03,9.5711]
[1642087630664,9.7365,154.1,154.03,9.5711]
[1642087630863,22.25521417,154.09,154.03,9.5711]
[1642087631063,22.50521417,154.09,153.98,1.33986203]
[1642087631374,0.25,154.09,153.98,7.33986203]
[1642087631566,0.25,154.09,154.0,1.9473]
[1642087631965,0.57826842,154.09,154.0,1.9473]
[1642087632164,0.32826842,154.09,154.0,1.9473]
[1642087632365,23.13397629,154.08,154.0,1.9473]
[1642087632564,23.38397629,154.08,154.02,1.9472]
[1642087632964,0.25,154.08,154.02,1.9472]
[1642087633164,0.32826842,154.09,154.02,1.9472]
[1642087633364,0.32826842,154.09,154.03,2.596]
[1642087633766,0.32826842,154.09,154.01,6.4893]
[1642087633966,0.32826842,154.09,153.99,2.596]
[1642087634165,0.32826842,154.09,153.97,2.596]
[1642087634566,22.0633743,154.08,153.97,9.106]
[1642087634967,22.3133743,154.08,153.97,9.106]
[1642087635166,22.3133743,154.08,154.02,1.9472]
[1642087635767,22.3133743,154.08,153.97,10.306]
[1642087635768,24.9093743,154.08,153.97,2.596]
[1642087635967,24.9093743,154.08,153.95,9.7857]
[1642087636168,24.9093743,154.08,153.96,2.597]
[1642087636370,30.9093743,154.08,153.96,2.597]
[1642087636867,30.9093743,154.08,153.96,8.597]
[1642087637068,38.6193743,154.08,153.96,8.597]
[1642087637269,48.3567743,154.08,153.98,1.9476]
[1642087637467,48.3567743,154.08,153.96,8.597]
[1642087637666,1.64999521,154.07,153.96,2.597]
[1642087637868,2.597,154.06,153.96,2.597]
[1642087638066,19.45628281,154.05,153.96,2.597]
[1642087638270,2.597,154.04,153.96,2.597]
[1642087638471,19.45628281,154.05,153.93,2.597]
[1642087638876,25.45628281,154.05,153.93,2.597]
[1642087639072,2.597,154.04,153.92,2.597]
[1642087639271,22.05328281,154.05,153.92,2.597]
[1642087639473,22.30328281,154.05,153.96,1.9479]
[1642087639874,2.847,154.05,153.96,1.9479]
[1642087640072,0.25,154.05,153.96,4.5449]
[1642087640472,10.307,154.08,153.96,4.5449]
[1642087640872,23.29284561,154.07,153.98,1.9475]
[1642087641072,2.596,154.06,153.98,1.9475]
[1642087641274,23.29284561,154.07,153.98,1.9475]
[1642087642177,0.25,154.07,153.98,1.9475]
[1642087642675,2.597,154.08,153.98,1.61923158]
[1642087642874,2.596,154.11,153.98,1.61923158]
[1642087643173,22.78838246,154.1,153.98,1.61923158]
[1642087643399,12.3332,154.09,153.98,1.61923158]
[1642087643775,2.596,154.09,153.98,1.61923158]
[1642087643974,8.846,154.09,153.98,1.61923158]
[1642087645183,18.5831,154.09,153.98,1.61923158]
[1642087646582,26.2931,154.09,153.96,1.9478]
[1642087646778,27.94309521,154.09,153.93,2.596]
[1642087647080,27.94309521,154.09,153.91,9.7986]
[1642087647282,27.94309521,154.09,153.91,15.7986]
[1642087647485,27.94309521,154.09,153.91,9.7986]
[1642087647884,52.22829521,154.09,153.91,15.7986]
[1642087648084,52.22829521,154.09,153.92,1.9484]
[1642087648686,58.37902663,154.09,153.92,1.9484]
[1642087649088,6.76320467,154.08,153.89,2.597]
[1642087649286,106.727,154.07,153.88,2.597]
[1642087649486,9.7456,153.98,153.87,9.5558]
[1642087649686,2.598,153.97,153.83,2.598]
[1642087650089,8.848,153.97,153.83,2.598]
[1642087650285,22.15809097,153.96,153.83,2.598]
[1642087650485,2.599,153.95,153.84,1.9493]
[1642087650687,31.00709097,153.96,153.85,2.599]
[1642087650908,6.25,153.95,153.83,2.599]
[1642087651109,2.599,153.94,153.82,12.1515]
[1642087651511,9.7475,153.92,153.82,14.1009]
[1642087651713,19.9013337,153.93,153.82,14.1009]
[1642087651913,8.849,153.92,153.82,11.5019]
[1642087652113,8.849,153.92,153.8,2.599]
[1642087652114,7.71,153.91,153.8,2.599]
[1642087652313,7.71,153.91,153.79,2.599]
[1642087652516,2.599,153.9,153.79,2.599]
[1642087652717,7.71,153.89,153.79,2.599]
[1642087652914,18.10004294,153.87,153.79,2.599]
[1642087653114,94.0,153.85,153.79,0.0001]
[1642087653414,10.31,153.84,153.69,9.837]
[1642087653615,32.5226,153.82,153.71,3.18495031]
[1642087653814,2.601,153.81,153.71,3.18495031]
[1642087654014,16.561,153.81,153.71,3.18495031]
[1642087654216,94.0,153.8,153.65,544.17478331]
[1642087654519,0.31217167,153.77,153.61,9.15869832]
[1642087654714,32.5509,153.68,153.61,9.15869832]
[1642087654914,2.603,153.67,153.56,14.65391731]
[1642087655117,10.313,153.67,153.56,14.65391731]
[1642087655318,19.99424208,153.66,153.52,20.03779703]
[1642087655514,10.314,153.65,153.52,20.03779703]
[1642087655714,9.7674,153.62,153.52,21.99129703]
[1642087655918,24.54419248,153.63,153.52,24.59529703]
[1642087656214,7.71,153.66,153.53,2.604]
[1642087656614,7.71,153.71,153.53,75.29010484]
[1642087656815,7.71,153.71,153.55,1.9521]
[1642087657016,7.71,153.71,153.56,18.38901458]
[1642087657017,22.47872832,153.7,153.56,18.38901458]
[1642087657216,22.47872832,153.7,153.56,19.72511942]
[1642087657419,22.47872832,153.7,153.57,1.33610484]
[1642087657820,2.603,153.73,153.57,9.28810484]
[1642087658016,7.71,153.74,153.58,7.71]
[1642087658217,2.603,153.77,153.58,9.04610484]
[1642087658416,6.0,153.76,153.59,1.33610484]
[1642087658616,6.0,153.77,153.6,7.71]
[1642087658818,22.2990744,153.76,153.62,1.9513]
[1642087659019,28.2990744,153.76,153.62,9.6613]
[1642087659218,28.2990744,153.76,153.62,15.6613]
[1642087659417,28.2990744,153.76,153.62,9.6613]
[1642087659818,28.5490744,153.76,153.62,9.6613]
[1642087660020,22.2990744,153.76,153.62,15.6613]
[1642087660423,22.2990744,153.76,153.62,9.6613]
[1642087660621,22.2990744,153.76,153.62,9.9113]
[1642087661021,22.2990744,153.76,153.62,9.6613]
[1642087661625,2.602,153.75,153.62,9.6613]
[1642087662022,2.602,153.75,153.62,25.5815]
[1642087662322,2.602,153.75,153.63,1.9512]
[1642087662522,22.2990744,153.76,153.63,15.6612]
[1642087662728,28.2990744,153.76,153.63,9.6612]
[1642087662931,28.2990744,153.76,153.63,1.9512]
[1642087662932,2.602,153.75,153.63,1.9512]
[1642087663129,9.7603,153.73,153.63,1.9512]
[1642087663328,15.487,153.75,153.63,1.9512]
[1642087663726,15.487,153.75,153.6,1.33610484]
[1642087663927,15.487,153.75,153.53,9.5949]
[1642087664228,15.487,153.75,153.51,10.89710005]
[1642087664229,9.7629,153.68,153.51,10.89710005]
[1642087664426,2.604,153.67,153.52,23.1754]
[1642087664627,21.89939534,153.66,153.52,23.1754]
[1642087665032,21.89939534,153.66,153.54,1.9524]
[1642087665430,9.7624,153.69,153.54,1.9524]
[1642087665630,2.603,153.68,153.55,1.34686585]
[1642087665834,2.603,153.72,153.54,6.0]
[1642087666029,2.603,153.73,153.53,12.5077]
[1642087666228,2.603,153.79,153.55,1.34686585]
[1642087666430,9.7599,153.76,153.56,17.1225444]
[1642087666628,19.81660666,153.75,153.56,17.1225444]
[1642087666829,19.81660666,153.75,153.57,1.34686585]
[1642087667043,2.603,153.74,153.58,1.9519]
[1642087667240,2.603,153.74,153.59,18.36445246]
[1642087667541,19.81660666,153.75,153.59,25.71131831]
[1642087667840,19.81660666,153.75,153.6,1.34686585]
[1642087668042,19.81660666,153.75,153.64,1.9511]
[1642087668239,19.81660666,153.75,153.65,20.06235915]
[1642087668441,2.602,153.82,153.65,21.409225]
[1642087668639,9.7551,153.83,153.65,27.409225]
[1642087668839,2.601,153.82,153.65,7.34686585]
[1642087669040,1.64999521,153.85,153.65,6.0]
[1642087669243,1.64999521,153.82,153.65,7.951]
[1642087669441,2.601,153.81,153.65,1.951]
[1642087669663,6.0,153.82,153.65,7.951]
[1642087669863,21.53311413,153.81,153.66,23.20901101]
[1642087670267,21.53311413,153.81,153.67,1.9513]
[1642087670770,2.601,153.81,153.67,0.25]
[1642087670964,2.601,153.81,153.68,7.71]
[1642087671165,2.601,153.86,153.68,7.71]
[1642087671366,10.311,153.87,153.68,15.30686585]
[1642087671665,23.89890644,153.86,153.69,21.98834424]
[1642087671866,23.89890644,153.86,153.71,1.9502]
[1642087672067,23.89890644,153.86,153.72,16.43846737]
[1642087672470,23.89890644,153.86,153.72,22.68846737]
[1642087672668,23.89890644,153.86,153.72,22.43846737]
[1642087672869,23.89890644,153.86,153.75,1.9502]
[1642087673069,23.89890644,153.86,153.75,20.90695591]
[1642087673469,23.89890644,153.86,153.75,7.9502]
[1642087674068,2.6,153.85,153.75,1.9502]
[1642087674268,12.13099521,153.85,153.75,1.9502]
[1642087674469,4.49999521,153.85,153.75,1.9502]
[1642087674670,2.85,153.85,153.75,1.9502]
[1642087677876,10.56,153.85,153.75,1.9502]
[1642087678571,20.3133,153.85,153.75,1.9502]
[1642087678972,26.3133,153.85,153.75,1.9502]
[1642087679170,16.56,153.85,153.75,1.9502]
[1642087679471,2.85,153.85,153.75,1.9502]
[1642087680070,10.56,153.85,153.75,1.9502]
[1642087680272,18.182,153.85,153.66,7.71]
[1642087680470,101.16209521,153.85,153.65,88.3442]
[1642087680870,99.5121,153.85,153.65,88.3442]
[1642087681471,99.5121,153.85,153.65,91.2712]
[1642087681673,63.64,153.84,153.65,91.2712]
[1642087681871,10.311,153.83,153.65,27.6312]
[1642087682076,63.64,153.82,153.65,2.927]
[1642087682273,10.311,153.81,153.65,2.927]
[1642087682473,22.3645465,153.8,153.65,2.927]
[1642087682674,10.312,153.79,153.65,2.927]
[1642087682874,9.761,153.71,153.64,2.9283]
[1642087683476,0.25,153.71,153.64,2.9283]
[1642087683974,25.96826872,153.73,153.59,17.4716]
[1642087684177,2.603,153.72,153.56,7.71]
[1642087684575,2.853,153.72,153.56,7.71]
[1642087684774,2.853,153.72,153.56,25.86615338]
[1642087684975,8.853,153.72,153.57,20.39805071]
[1642087685176,0.25,153.72,153.57,20.39805071]
[1642087685377,6.25,153.72,153.58,7.71]
[1642087685574,6.25,153.72,153.58,13.71]
[1642087685776,6.25,153.72,153.58,7.71]
[1642087685974,0.25,153.72,153.59,17.34715297]
[1642087686175,0.25,153.72,153.59,18.69555608]
[1642087686478,19.08926872,153.73,153.59,17.59715297]
[1642087686775,18.83926872,153.73,153.59,17.34715297]
[1642087686978,18.83926872,153.73,153.59,23.59715297]
[1642087687176,18.83926872,153.73,153.6,7.71]
[1642087687376,2.603,153.72,153.6,17.4698]
[1642087687577,18.83926872,153.73,153.6,7.71]
[1642087687976,24.83926872,153.73,153.62,1.84915461]
[1642087688178,12.3634,153.72,153.62,1.84915461]
[1642087688378,2.602,153.72,153.62,1.84915461]
[1642087688677,2.852,153.72,153.62,1.84915461]
[1642087689081,2.852,153.72,153.61,9.76]
[1642087689277,0.25,153.72,153.61,9.76]
[1642087689481,19.08926872,153.73,153.61,9.76]
[1642087689678,7.71,153.72,153.62,2.9285]
[1642087689880,2.602,153.71,153.62,2.9285]
[1642087690082,0.25,153.71,153.62,2.9285]
[1642087691281,0.25,153.72,153.62,2.9285]
[1642087691483,8.853,153.76,153.62,2.9285]
[1642087691783,7.71,153.75,153.62,2.9285]
[1642087691982,2.602,153.74,153.62,2.9285]
[1642087692186,23.6169558,153.73,153.62,2.9285]
[1642087692601,23.6169558,153.73,153.62,8.9285]
[1642087692795,23.6169558,153.73,153.62,2.9285]
[1642087692992,23.6169558,153.73,153.61,17.60935461]
[1642087692993,37.5629558,153.73,153.61,1.84915461]
[1642087693195,2.602,153.72,153.63,1.84915461]
[1642087693399,10.312,153.72,153.63,1.84915461]
[1642087693797,16.312,153.72,153.63,1.84915461]
[1642087694001,16.562,153.72,153.63,1.84915461]
[1642087694403,9.765,153.68,153.63,1.84915461]
[1642087694601,2.603,153.67,153.59,1.84915461]
[1642087695002,15.251,153.67,153.59,1.84915461]
[1642087695203,25.08598864,153.66,153.59,1.84915461]
[1642087695403,2.603,153.65,153.59,1.84915461]
[1642087695603,2.853,153.65,153.59,1.84915461]
[1642087695802,2.853,153.65,153.55,1.84915461]
[1642087696830,7.71,153.64,153.55,1.84915461]
[1642087697040,7.71,153.64,153.51,9.5674]
[1642087697041,2.604,153.63,153.54,1.84915461]
[1642087697231,10.314,153.63,153.54,1.84915461]
[1642087697430,16.564,153.63,153.54,1.84915461]
[1642087697631,20.78715823,153.62,153.54,1.84915461]
[1642087697836,2.604,153.61,153.54,1.84915461]
[1642087698033,0.25,153.61,153.54,1.84915461]
[1642087698433,0.25,153.61,153.53,2.9302]
[1642087698633,2.604,153.66,153.53,2.9302]
[1642087698933,2.604,153.69,153.53,4.29315349]
[1642087699133,85.4088,153.74,153.54,7.71]
[1642087699336,2.603,153.73,153.56,2.9279]
[1642087699536,18.27593191,153.75,153.58,22.04785221]
[1642087699735,20.87893191,153.75,153.6,63.64]
[1642087699934,18.27593191,153.75,153.61,24.0889594]
[1642087700134,18.27593191,153.75,153.61,7.71]
[1642087700335,18.27593191,153.75,153.62,2.9272]
[1642087701337,18.27593191,153.75,153.62,1.8350373]
[1642087701535,2.602,153.74,153.62,1.8350373]
[1642087701937,2.852,153.74,153.62,1.8350373]
[1642087702138,2.852,153.74,153.62,9.5450373]
[1642087702336,0.25,153.74,153.62,9.5450373]
[1642087702537,18.52593191,153.75,153.62,9.5450373]
[1642087702737,2.602,153.74,153.62,9.5450373]
[1642087702937,2.602,153.74,153.62,1.8350373]
[1642087703138,2.602,153.74,153.6,1.84915461]
[1642087703139,10.312,153.74,153.6,1.84915461]
[1642087703344,16.312,153.74,153.6,1.84915461]
[1642087704139,16.562,153.74,153.61,18.73745762]
[1642087704340,7.71,153.74,153.58,12.48705461]
[1642087704543,18.27593191,153.75,153.58,73.44915461]
[1642087704845,18.27593191,153.75,153.61,1.36667893]
[1642087705042,18.27593191,153.75,153.62,7.71]
[1642087705443,2.602,153.79,153.63,20.02693782]
[1642087705644,2.602,153.81,153.65,63.64]
[1642087705847,10.312,153.81,153.65,71.35]
[1642087706043,10.312,153.81,153.66,0.07]
[1642087706245,2.602,153.81,153.67,7.71]
[1642087706445,20.97684731,153.8,153.68,18.39987379]
[1642087706644,20.97684731,153.8,153.67,2.9265]
[1642087707274,26.97684731,153.8,153.66,0.07]
[1642087707471,10.311,153.79,153.66,0.07]
[1642087707676,9.7604,153.78,153.66,0.07]
[1642087707870,21.44051793,153.76,153.66,0.07]
[1642087708070,21.69051793,153.76,153.66,0.07]
[1642087708772,21.69051793,153.76,153.66,2.9977]
[1642087708973,21.69051793,153.76,153.66,4.36437893]
[1642087709173,21.69051793,153.76,153.66,4.29437893]
[1642087709374,21.69051793,153.76,153.66,2.9277]
[1642087709575,21.44051793,153.76,153.66,74.2777]
[1642087709778,21.44051793,153.76,153.66,8.6377]
[1642087710079,21.44051793,153.76,153.67,1.84915461]
[1642087710676,10.312,153.75,153.67,1.84915461]
[1642087710887,9.7623,153.74,153.67,1.84915461]
[1642087711078,10.312,153.73,153.67,1.84915461]
[1642087711277,21.25273484,153.72,153.67,1.84915461]
[1642087711480,35.21273484,153.72,153.67,1.84915461]
[1642087711678,21.50273484,153.72,153.67,1.84915461]
[1642087711977,27.50273484,153.72,153.62,12.97463354]
[1642087712177,27.50273484,153.72,153.62,11.60795461]
[1642087712580,21.50273484,153.72,153.63,63.64]
[1642087712780,21.50273484,153.72,153.62,11.67795461]
[1642087712979,7.71,153.71,153.64,1.84915461]
[1642087713179,21.50273484,153.72,153.64,1.84915461]
[1642087713380,0.25,153.71,153.64,1.84915461]
[1642087713578,2.602,153.73,153.64,1.84915461]
[1642087713779,23.0941,153.86,153.64,1.36667893]
[1642087713780,2.602,153.79,153.64,1.36667893]
[1642087713979,7.71,153.78,153.64,1.36667893]
[1642087714178,7.71,153.78,153.64,4.29487893]
[1642087714379,7.71,153.78,153.64,2.9282]
[1642087714581,20.98251868,153.77,153.64,2.9282]
[1642087714781,2.602,153.76,153.64,2.9282]
[1642087714980,2.602,153.76,153.65,1.84915461]
[1642087715183,2.602,153.76,153.66,20.40244602]
[1642087715382,0.25,153.76,153.67,3.9026]
[1642087715580,23.83451868,153.77,153.67,3.9026]
[1642087716581,7.71,153.76,153.65,3.9038]
[1642087716781,2.602,153.75,153.63,1.84915461]
[1642087716980,7.71,153.74,153.63,1.84915461]
[1642087717382,7.96,153.74,153.65,1.85376938]
[1642087717583,10.312,153.8,153.65,1.85376938]
[1642087717884,7.71,153.8,153.65,5.75566938]
[1642087718083,13.71,153.8,153.65,5.75566938]
[1642087718283,13.71,153.8,153.65,11.75566938]
[1642087718482,13.71,153.8,153.66,20.69284392]
[1642087718883,13.71,153.8,153.67,0.07]
[1642087719084,2.601,153.79,153.67,0.07]
[1642087719484,2.601,153.79,153.67,1.92376938]
[1642087719682,81.5058,153.82,153.67,9.63376938]
[1642087719883,78.9048,153.82,153.67,17.25044831]
[1642087720083,10.311,153.85,153.72,63.64]
[1642087720285,4.27344673,153.86,153.72,63.64]
[1642087720490,1.67244673,153.86,153.73,0.07]
[1642087720689,1.67244673,153.89,153.74,7.71]
[1642087720887,1.67244673,153.89,153.76,63.64]
[1642087721090,1.67244673,153.89,153.78,3.8986]
[1642087721288,1.67244673,153.89,153.78,11.6086]
[1642087721486,1.67244673,153.89,153.8,33.68764392]
[1642087721694,1.67244673,153.89,153.8,41.39764392]
[1642087721889,17.50589298,153.88,153.8,20.9648]
[1642087722090,23.50589298,153.88,153.8,7.71]
[1642087722290,2.6,153.87,153.78,63.64]
[1642087722489,23.50589298,153.88,153.78,67.7996]
[1642087722690,6.0,153.88,153.78,67.7996]
[1642087723092,8.6,153.92,153.78,75.5096]
[1642087723296,6.0,153.92,153.78,75.5096]
[1642087723495,8.599,153.93,153.78,76.87627893]
[1642087723696,23.33805099,153.92,153.79,22.1437163]
[1642087723895,23.33805099,153.92,153.81,2.9241]
[1642087724096,29.58805099,153.92,153.81,3.1841]
[1642087724297,29.33805099,153.92,153.81,3.1841]
[1642087724696,29.33805099,153.92,153.81,2.9241]
[1642087725196,2.599,153.91,153.81,2.9241]
[1642087725599,8.599,153.91,153.81,2.9241]
[1642087725796,16.309,153.91,153.81,2.9241]
[1642087726025,26.0583,153.91,153.81,2.9241]
[1642087726422,16.559,153.91,153.81,2.9241]
[1642087729223,10.559,153.91,153.81,2.9241]
[1642087729524,2.599,153.91,153.81,2.9241]
[1642087730123,2.599,153.91,153.81,3.1841]
[1642087730326,184.17184673,153.96,153.81,2.9241]
[1642087730525,187.57284673,153.96,153.81,2.9241]
[1642087730728,187.57284673,153.96,153.81,3.1841]
[1642087731027,187.57284673,153.96,153.81,3.4341]
[1642087731229,18.86221057,153.95,153.83,2.9226]
[1642087731427,18.86221057,153.95,153.81,8.22]
[1642087731428,18.86221057,153.95,153.82,1.36706883]
[1642087731730,0.25,153.95,153.88,9.7419]
[1642087732330,1.67244673,153.97,153.88,10.0019]
[1642087732529,1.67244673,153.97,153.88,9.7419]
[1642087732829,30.97228465,153.98,153.88,9.7419]
[1642087733031,13.71,153.98,153.88,9.7419]
[1642087733234,6.0,153.98,153.89,2.9226]
[1642087733631,6.0,153.99,153.89,3.1826]
[1642087733832,7.3353877,154.0,153.89,3.1826]
[1642087734030,18.68818787,153.99,153.89,3.1826]
[1642087734531,24.68818787,153.99,153.89,3.1826]
[1642087734832,24.68818787,153.99,153.92,2.9222]
[1642087735433,24.68818787,153.99,153.86,23.2973]
[1642087735633,2.598,153.98,153.86,23.2973]
[1642087735835,2.598,153.98,153.85,19.4456]
[1642087736043,14.221,153.98,153.84,23.7051]
[1642087736642,8.848,153.98,153.84,41.1583]
[1642087736837,8.848,153.98,153.86,17.71073699]
[1642087737037,6.25,153.98,153.86,17.71073699]
[1642087737237,6.25,153.98,153.91,2.9224]
[1642087737437,0.25,153.98,153.91,2.9224]
[1642087737638,6.25,153.98,153.91,2.9224]
[1642087737840,6.0,153.98,153.91,2.9224]
[1642087738038,6.25,153.98,153.91,2.9224]
[1642087738238,0.25,153.98,153.91,2.9224]
[1642087738441,6.0,153.98,153.91,2.9224]
[1642087738938,6.0,153.98,153.91,3.1824]
[1642087739139,7.3353877,154.0,153.91,3.1824]
[1642087739540,26.12164603,154.0,153.91,2.9224]
[1642087739938,7.3353877,154.0,153.92,18.12725287]
[1642087740139,7.3353877,154.0,153.92,21.04935287]
[1642087740340,7.3353877,154.0,153.92,21.30935287]
[1642087740539,1.3353877,154.0,153.93,71.35]
[1642087740741,1.3353877,154.0,153.93,71.61]
[1642087740938,1.3353877,154.0,153.93,71.86]
[1642087741340,20.12123152,154.04,153.96,2.9211]
[1642087742640,20.12123152,154.04,153.94,2.9217]
[1642087742841,2.597,154.03,153.94,2.9217]
[1642087743643,2.847,154.03,153.94,2.9217]
[1642087743842,2.597,154.03,153.94,2.9217]
[1642087744142,20.12123152,154.04,153.94,2.9217]
[1642087744543,20.12123152,154.04,153.94,3.1817]
[1642087744743,20.12123152,154.04,153.94,10.8917]
[1642087745143,2.597,154.08,153.94,10.8917]
[1642087745344,2.597,154.08,153.94,11.1417]
[1642087745546,2.597,154.08,153.95,63.64]
[1642087745745,8.597,154.08,153.95,63.64]
[1642087745950,8.597,154.08,154.01,2.9204]
[1642087746152,6.0,154.08,154.01,2.4204]
[1642087746346,1.67244673,154.1,154.01,2.4204]
[1642087746546,1.67244673,154.1,154.01,10.3904]
[1642087746846,1.67244673,154.1,154.02,63.64]
[1642087747046,1.67244673,154.1,154.02,0.26]
[1642087747446,1.67244673,154.1,154.01,7.71]
[1642087747647,1.67244673,154.12,154.01,8.22]
[1642087747847,1.67244673,154.12,154.05,2.9196]
[1642087748352,22.58606578,154.12,154.05,2.9196]
[1642087748547,22.58606578,154.12,154.01,7.71]
[1642087748750,2.596,154.11,153.98,7.71]
[1642087748948,2.596,154.11,154.01,2.9204]
[1642087749349,2.596,154.11,154.01,24.66961843]
[1642087749951,1.3353877,154.14,154.01,24.66961843]
[1642087750250,1.3353877,154.14,154.01,32.37961843]
[1642087750449,1.67244673,154.13,154.07,2.9192]
[1642087750853,7.67244673,154.13,154.07,3.1792]
[1642087751152,1.67244673,154.13,154.07,3.1792]
[1642087751355,7.67244673,154.13,154.07,2.9192]
[1642087751551,4.26744673,154.13,154.03,7.71]
[1642087751752,4.26744673,154.13,154.03,10.6301]
[1642087751952,2.845,154.13,154.03,10.6301]
[1642087752576,8.845,154.13,154.03,10.6301]
[1642087752777,2.845,154.13,154.03,10.6301]
[1642087753177,2.845,154.13,154.03,2.9201]
[1642087753379,8.845,154.13,154.03,2.9201]
[1642087753578,2.845,154.13,154.03,2.9201]
[1642087753880,8.845,154.13,154.03,2.9201]
[1642087754076,8.845,154.13,154.03,3.1801]
[1642087754277,8.595,154.13,154.03,3.1801]
[1642087754476,8.595,154.13,154.03,2.9201]
[1642087754676,6.0,154.13,154.03,2.9801]
[1642087754876,6.0,154.13,154.03,8.9801]
[1642087755077,23.02628186,154.14,154.04,63.64]
[1642087755078,29.02628186,154.14,154.04,63.64]
[1642087755277,7.3353877,154.14,154.08,2.9192]
[1642087757078,20.40832523,154.13,154.08,2.9192]
[1642087757577,26.65832523,154.13,154.08,2.9192]
[1642087757981,26.65832523,154.13,154.06,2.9196]
[1642087758180,29.25332523,154.13,154.06,2.9196]
[1642087758579,29.25332523,154.13,154.02,27.73903603]
[1642087758780,26.40832523,154.13,154.02,7.71]
[1642087758988,26.40832523,154.13,154.04,2.9199]
[1642087759179,2.595,154.12,154.04,2.9199]
[1642087759381,2.595,154.12,154.0,9.852]